fUSD/lending_fUSD_20240119
["ID","MTS","AMOUNT","RATE_DAILY","PERIOD"]
[312144994,1705668649416,-500.0,0.00022966,2]
[312144995,1705668649428,-760.36,0.00022966,2]
[312144996,1705668649438,-2003.59,0.00022966,2]
[312144997,1705668649449,-685.58,0.00022966,2]
[312144998,1705668649459,-4762.72,0.00022966,2]
[312144999,1705668649470,-1052.49,0.00022966,2]
[312145000,1705668649481,-500.0,0.00022966,2]
[312145001,1705668649492,-500.0,0.00022966,2]
[312145002,1705668649503,-500.0,0.00022966,2]
[312145003,1705668649514,-500.0,0.00022966,2]
[312145004,1705668649524,-1502.73,0.00022966,2]
[312145005,1705668649535,-500.0,0.00022966,2]
[312145006,1705668649545,-815.95,0.00022966,2]
[312145007,1705668649556,-500.0,0.00022966,2]
[312145008,1705668649567,-500.0,0.00022966,2]
[312145009,1705668649577,-712.25,0.00022966,2]
[312145010,1705668649589,-3846.66,0.00022966,2]
[312145011,1705668649600,-904.22,0.00022966,2]
[312145012,1705668649611,-934.25,0.00022966,2]
[312145013,1705668649622,-1011.36,0.00022966,2]
[312145014,1705668649632,-1340.55,0.00022966,2]
[312145015,1705668649643,-596.55,0.00022966,2]
[312145016,1705668649653,-500.0,0.00022966,2]
[312145017,1705668649663,-4496.97,0.00022966,2]
[312145018,1705668649673,-500.0,0.00022966,2]
[312145019,1705668649683,-500.0,0.00022966,2]
[312145020,1705668649694,-503.93454786,0.00022967,2]
[312145021,1705668649705,-500.0,0.00022967,2]
[312145022,1705668649715,-500.0,0.00022967,2]
[312145023,1705668649726,-500.0,0.00022967,2]
[312145024,1705668649736,-500.0,0.00022967,2]
[312145025,1705668649747,-761.41,0.00022967,2]
[312145026,1705668649758,-504.64538381,0.00022967,2]
[312145027,1705668649769,-1237.21,0.00022967,2]
[312145028,1705668649780,-500.0,0.00022967,2]
[312145029,1705668649791,-1237.18,0.00022967,2]
[312145030,1705668650182,-3581.47,0.00022967,2]
[312145031,1705668650204,-2752.64,0.00022967,2]
[312145032,1705668650215,-5663.37,0.00022967,2]
[312145033,1705668650226,-500.0,0.00022967,2]
[312145034,1705668650238,-4637.63,0.00022967,2]
[312145035,1705668650250,-151.91478247,0.00022967,2]
[312145036,1705668650261,-500.0,0.00022967,2]
[312145037,1705668650273,-965.18,0.00022967,2]
[312145038,1705668650283,-3418.35,0.00022967,2]
[312145039,1705668650295,-4422.01,0.00022967,2]
[312145040,1705668650306,-3218.99,0.00022967,2]
[312145041,1705668650317,-500.0,0.00022967,2]
[312145042,1705668650329,-500.0,0.00022967,2]
[312145043,1705668650340,-3198.8,0.00022967,2]
[312145044,1705668650351,-2120.11,0.00022967,2]
[312145045,1705668650361,-2647.96,0.00022967,2]
[312145046,1705668650372,-12716.49,0.00022967,2]
[312145047,1705668650383,-500.0,0.00022967,2]
[312145048,1705668650394,-9055.39,0.00022967,2]
[312145049,1705668650406,-500.0,0.00022967,2]
[312145050,1705668650417,-573.95,0.00022967,2]
[312145051,1705668650428,-8425.91,0.00022967,2]
[312145052,1705668650439,-1960.9,0.00022967,2]
[312145053,1705668650450,-5186.57,0.00022967,2]
[312145054,1705668650461,-3710.39,0.00022967,2]
[312145055,1705668650472,-3177.97,0.00022967,2]
[312145056,1705668650483,-1589.78,0.00022967,2]
[312145057,1705668650494,-2134.8,0.00022967,2]
[312145058,1705668650504,-2023.74,0.00022967,2]
[312145059,1705668650515,-1717.53,0.00022967,2]
[312145060,1705668650526,-4285.16,0.00022967,2]
[312145061,1705668650536,-3012.51,0.00022967,2]
[312145062,1705668650547,-500.0,0.00022967,2]
[312145063,1705668650558,-1637.31,0.00022967,2]
[312145064,1705668650569,-500.0,0.00022967,2]
[312145065,1705668650580,-1520.21,0.00022967,2]
[312145066,1705668650591,-4233.95,0.00022967,2]
[312145067,1705668650603,-502.3702426,0.00022967,2]
[312145068,1705668650613,-915.54,0.00022967,2]
[312145069,1705668650624,-3349.42,0.00022967,2]
[312145070,1705668650635,-1507.21,0.00022967,2]
[312145071,1705668650646,-2230.55,0.00022967,2]
[312145072,1705668650657,-2442.04,0.00022967,2]
[312145073,1705668650668,-871.26,0.00022967,5]
[312145074,1705668650679,-1591.88,0.00022967,2]
[312145075,1705668650690,-543.58,0.00022967,2]
[312145076,1705668650702,-3903.64,0.00022967,2]
[312145077,1705668650713,-40772.69940234,0.00022969,3]
[312145078,1705668651446,-820.80219176,0.00022969,3]
[312145079,1705668651459,-2490.97927769,0.00022969,3]
[312145080,1705668651473,-592.08019123,0.00022969,3]
[312145081,1705668651486,-41521.96468411,0.00022969,3]
[312145082,1705668651499,-283.399807,0.00022969,3]
[312145083,1705668651513,-485.01846899,0.00022969,3]
[312145084,1705668651526,-2969.69999129,0.00022969,3]
[312145085,1705668651538,-1639.18500275,0.00022969,3]
[312145086,1705668651552,-757.66330823,0.00022969,3]
[312145087,1705668651698,-818.18510667,0.00022969,3]
[312145088,1705668651712,-1299.57547474,0.00022969,3]
[312145089,1705668651725,-3668.3593219,0.00022969,3]
[312145090,1705668651738,-732.82446774,0.00022969,3]
[312145091,1705668651751,-65302.46737701,0.00022969,3]
[312145092,1705668651764,-693.72201928,0.00022969,3]
[312145093,1705668651777,-687.98644854,0.00022969,3]
[312145094,1705668651820,-675.09345827,0.00022969,3]
[312145095,1705668652542,-543.36,0.00020539,2]
[312145096,1705668652553,-2687.47328857,0.00022969,3]
[312145097,1705668652566,-6583.37424006,0.00022969,3]
[312145098,1705668652578,-3252.19946575,0.00022969,3]
[312145099,1705668652599,-795.55742403,0.00022969,3]
[312145100,1705668652617,-764.15612608,0.00022969,3]
[312145101,1705668652634,-984.80202729,0.00022969,3]
[312145102,1705668652665,-561.73947973,0.00022969,3]
[312145103,1705668652678,-1414.14450651,0.00022969,3]
[312145104,1705668652699,-676.13989591,0.00022969,3]
[312145105,1705668652712,-114868.25542092,0.00022969,3]
[312145106,1705668652722,-500.0,0.00022969,2]
[312145107,1705668652733,-500.0,0.00022969,2]
[312145108,1705668652743,-500.0,0.00022969,2]
[312145109,1705668652754,-1334.12,0.00022969,2]
[312145110,1705668652764,-500.0,0.00022969,2]
[312145111,1705668652774,-500.0,0.00022969,2]
[312145112,1705668652784,-586.22,0.00022969,2]
[312145113,1705668652795,-500.0,0.00022969,2]
[312145114,1705668652805,-500.0,0.00022969,2]
[312145115,1705668652816,-248.32360621,0.00022969,2]
[312145116,1705668652827,-500.0,0.00022969,2]
[312145117,1705668652838,-587.4,0.00022969,2]
[312145118,1705668652849,-500.0,0.00022969,2]
[312145119,1705668652860,-500.0,0.00022969,2]
[312145120,1705668652870,-500.0,0.00022969,2]
[312145121,1705668652882,-500.0,0.00022969,2]
[312145122,1705668652892,-624.22,0.00022969,2]
[312145123,1705668652903,-500.0,0.00022969,2]
[312145124,1705668652914,-500.0,0.00022969,2]
[312145125,1705668652924,-500.0,0.00022969,2]
[312145126,1705668652934,-530.43,0.00022969,2]
[312145127,1705668652945,-500.0,0.00022969,2]
[312145128,1705668652959,-500.0,0.00022969,2]
[312145129,1705668652969,-500.0,0.00022969,2]
[312145130,1705668652980,-500.0,0.00022969,2]
[312145131,1705668652991,-580.82,0.00022969,2]
[312145132,1705668653003,-500.0,0.00022969,2]
[312145133,1705668653013,-596.87,0.00022969,2]
[312145134,1705668653023,-500.0,0.00022969,2]
[312145135,1705668653033,-500.0,0.00022969,2]
[312145136,1705668653044,-578.11,0.00022969,2]
[312145137,1705668653055,-500.0,0.00022969,2]
[312145138,1705668653066,-627.18252465,0.00022969,2]
[312145139,1705668653076,-500.0,0.00022969,2]
[312145140,1705668653087,-575.40700285,0.00022969,2]
[312145141,1705668653098,-500.0,0.00022969,2]
[312145142,1705668653109,-500.0,0.00022969,2]
[312145143,1705668653119,-500.0,0.00022969,2]
[312145144,1705668653130,-500.0,0.00022969,2]
[312145145,1705668653140,-500.0,0.00022969,2]
[312145146,1705668653151,-500.0,0.00022969,2]
[312145147,1705668653161,-500.0,0.00022969,2]
[312145148,1705668653172,-500.0,0.00022969,2]
[312145149,1705668653183,-561.49,0.00022969,2]
[312145150,1705668653193,-500.0,0.00022969,2]
[312145151,1705668653204,-500.0,0.00022969,2]
[312145152,1705668653215,-516.23410643,0.00022969,2]
[312145153,1705668653226,-521.67,0.00022969,2]
[312145154,1705668653237,-500.0,0.00022969,2]
[312145155,1705668653247,-500.0,0.00022969,2]
[312145156,1705668653258,-507.06809226,0.00022969,2]
[312145157,1705668653269,-500.0,0.00022969,2]
[312145158,1705668653279,-500.0,0.00022969,2]
[312145159,1705668653290,-500.0,0.00022969,2]
[312145160,1705668653301,-275.53320335,0.00022969,2]
[312145161,1705668653311,-575.71702058,0.00022969,2]
[312145162,1705668653322,-500.0,0.00022969,2]
[312145163,1705668653333,-500.0,0.00022969,2]
[312145164,1705668653343,-500.0,0.00022969,2]
[312145165,1705668653355,-552.82,0.00022969,2]
[312145166,1705668653366,-500.0,0.00022969,2]
[312145167,1705668653376,-500.0,0.00022969,2]
[312145168,1705668653386,-500.0,0.00022969,2]
[312145169,1705668653397,-628.72484833,0.00022969,2]
[312145170,1705668653408,-500.0,0.00022969,2]
[312145171,1705668653419,-548.36,0.00022969,2]
[312145172,1705668653430,-500.0,0.00022969,2]
[312145173,1705668653440,-500.0,0.00022969,2]
[312145174,1705668653450,-503.66867892,0.00022969,2]
[312145175,1705668653463,-500.0,0.00022969,2]
[312145176,1705668653473,-500.0,0.00022969,2]
[312145177,1705668653483,-500.0,0.00022969,2]
[312145178,1705668653493,-500.0,0.00022969,2]
[312145179,1705668653503,-500.0,0.00022969,2]
[312145180,1705668653514,-500.0,0.00022969,2]
[312145181,1705668653525,-520.38748802,0.00022969,2]
[312145182,1705668653536,-500.0,0.00022969,2]
[312145183,1705668653546,-500.0,0.00022969,2]
[312145184,1705668653556,-500.0,0.00022969,2]
[312145185,1705668653566,-2003.28,0.00022969,2]
[312145186,1705668653577,-500.0,0.00022969,2]
[312145187,1705668653587,-506.73833525,0.00022969,2]
[312145188,1705668653597,-500.0,0.00022969,2]
[312145189,1705668653607,-281.12921264,0.00022969,2]
[312145190,1705668653628,-218.87078736,0.00022969,2]
[312145191,1705668653638,-500.0,0.00022969,2]
[312145192,1705668653649,-500.0,0.00022969,2]
[312145193,1705668653660,-500.0,0.00022969,2]
[312145194,1705668653670,-500.0,0.00022969,2]
[312145195,1705668653680,-505.20724624,0.00022969,2]
[312145196,1705668653690,-500.0,0.00022969,2]
[312145197,1705668653700,-491.43712134,0.00022969,2]
[312145198,1705668653816,-8.56287866,0.00022969,2]
[312145199,1705668653826,-847.79,0.00022969,2]
[312145200,1705668653836,-500.0,0.00022969,2]
[312145201,1705668653848,-500.0,0.00022969,2]
[312145202,1705668653859,-500.0,0.00022969,2]
[312145203,1705668653870,-500.0,0.00022969,2]
[312145204,1705668653881,-500.0,0.00022969,2]
[312145205,1705668653892,-500.0,0.00022969,2]
[312145206,1705668653903,-500.0,0.00022969,2]
[312145207,1705668653914,-663.86,0.00022969,2]
[312145208,1705668653924,-500.0,0.00022969,2]
[312145209,1705668653934,-509.44,0.00022969,2]
[312145210,1705668653943,-1285.13,0.00022969,2]
[312145211,1705668653957,-921.18,0.00022969,2]
[312145212,1705668653968,-500.0,0.00022969,2]
[312145213,1705668653979,-500.0,0.00022969,2]
[312145214,1705668653990,-500.0,0.00022969,2]
[312145215,1705668654002,-500.0,0.00022969,2]
[312145216,1705668654013,-500.0,0.00022969,2]
[312145217,1705668654024,-1206.22,0.00022969,2]
[312145218,1705668654037,-500.0,0.00022969,2]
[312145219,1705668654048,-500.0,0.00022969,2]
[312145220,1705668654060,-500.0,0.00022969,2]
[312145221,1705668654071,-500.0,0.00022969,2]
[312145222,1705668654081,-500.0,0.00022969,2]
[312145223,1705668654092,-938.25,0.00022969,2]
[312145224,1705668654102,-505.39811618,0.00022969,2]
[312145225,1705668654112,-508.48971739,0.00022969,2]
[312145226,1705668654124,-500.0,0.00022969,2]
[312145227,1705668654134,-500.0,0.00022969,2]
[312145228,1705668654144,-537.15,0.00022969,2]
[312145229,1705668654155,-739.19,0.00022969,2]
[312145230,1705668654165,-500.0,0.00022969,2]
[312145231,1705668654175,-500.0,0.00022969,2]
[312145232,1705668654186,-500.0,0.00022969,2]
[312145233,1705668654195,-506.96638337,0.00022969,2]
[312145234,1705668654206,-500.0,0.00022969,2]
[312145235,1705668654218,-500.0,0.00022969,2]
[312145236,1705668654229,-1084.36660056,0.00022969,2]
[312145237,1705668654243,-243.93339944,0.00022969,2]
[312145238,1705668654254,-500.0,0.00022969,2]
[312145239,1705668654264,-500.0,0.00022969,2]
[312145240,1705668654276,-500.0,0.00022969,2]
[312145241,1705668654286,-500.0,0.00022969,2]
[312145242,1705668654297,-500.0,0.00022969,2]
[312145243,1705668654308,-500.0,0.00022969,2]
[312145244,1705668654319,-613.67,0.00022969,2]
[312145245,1705668654329,-941.41,0.00022969,2]
[312145246,1705668654340,-500.0,0.00022969,2]
[312145247,1705668654351,-500.0,0.00022969,2]
[312145248,1705668654362,-1200.16,0.00022969,2]
[312145249,1705668654372,-500.0,0.00022969,2]
[312145250,1705668654383,-537.46,0.00022969,2]
[312145251,1705668654393,-654.73,0.00022969,2]
[312145252,1705668654404,-500.0,0.00022969,2]
[312145253,1705668654415,-919.62,0.00022969,2]
[312145254,1705668654425,-1447.5,0.00022969,2]
[312145255,1705668654436,-960.78,0.00022969,2]
[312145256,1705668654446,-500.0,0.00022969,2]
[312145257,1705668654457,-587.91,0.00022969,2]
[312145258,1705668654467,-500.0,0.00022969,2]
[312145259,1705668654478,-500.0,0.00022969,2]
[312145260,1705668654489,-803.31,0.00022969,2]
[312145261,1705668654500,-920.55,0.00022969,2]
[312145262,1705668654510,-500.0,0.00022969,2]
[312145263,1705668654520,-500.0,0.00022969,2]
[312145264,1705668654531,-500.0,0.00022969,2]
[312145265,1705668654542,-500.0,0.00022969,2]
[312145266,1705668654552,-500.0,0.00022969,2]
[312145267,1705668654563,-500.0,0.00022969,2]
[312145268,1705668654573,-500.0,0.00022969,2]
[312145269,1705668654584,-500.0,0.00022969,2]
[312145270,1705668654595,-500.0,0.00022969,2]
[312145271,1705668654605,-500.0,0.00022969,2]
[312145272,1705668654615,-500.0,0.00022969,2]
[312145273,1705668654626,-692.11,0.00022969,2]
[312145274,1705668654636,-579.53,0.00022969,2]
[312145275,1705668654647,-583.26,0.00022969,2]
[312145276,1705668654657,-949.71,0.00022969,2]
[312145277,1705668654667,-500.0,0.00022969,2]
[312145278,1705668654678,-500.0,0.00022969,2]
[312145279,1705668654688,-500.0,0.00022969,2]
[312145280,1705668654699,-500.0,0.00022969,2]
[312145281,1705668654709,-944.7,0.00022969,2]
[312145282,1705668654720,-500.0,0.00022969,2]
[312145283,1705668654732,-732.43,0.00022969,2]
[312145284,1705668654742,-500.0,0.00022969,2]
[312145285,1705668654753,-505.14240706,0.00022969,2]
[312145286,1705668654763,-500.0,0.00022969,2]
[312145287,1705668654774,-500.0,0.00022969,2]
[312145288,1705668654785,-500.0,0.00022969,2]
[312145289,1705668654795,-500.0,0.00022969,2]
[312145290,1705668654805,-500.0,0.00022969,2]
[312145291,1705668654816,-500.0,0.00022969,2]
[312145292,1705668654827,-500.0,0.00022969,2]
[312145293,1705668654837,-502.94596601,0.00022969,2]
[312145294,1705668654849,-500.0,0.00022969,2]
[312145295,1705668654859,-1017.77,0.00022969,2]
[312145296,1705668654869,-500.0,0.00022969,2]
[312145297,1705668654879,-500.0,0.00022969,2]
[312145298,1705668654890,-685.42,0.00022969,2]
[312145299,1705668654901,-500.0,0.00022969,2]
[312145300,1705668654912,-500.0,0.00022969,2]
[312145301,1705668654923,-500.0,0.00022969,2]
[312145302,1705668654933,-167.2528357,0.00022969,2]
[312145303,1705668654943,-500.0,0.00022969,2]
[312145304,1705668654954,-500.0,0.00022969,2]
[312145305,1705668654966,-500.0,0.00022969,2]
[312145306,1705668654977,-500.0,0.00022969,2]
[312145307,1705668654987,-500.0,0.00022969,2]
[312145308,1705668654998,-353.90612269,0.00022969,2]
[312145309,1705668655979,-543.36,0.00021518,2]
[312145310,1705668655990,-543.36,0.00022496,2]
[312145311,1705668656002,-150.83969321,0.00022969,2]
[312145312,1705668656012,-500.0,0.00022969,2]
[312145313,1705668656023,-504.35021376,0.00022969,2]
[312145314,1705668656035,-502.91918113,0.00022969,2]
[312145315,1705668656045,-503.14004838,0.00022969,2]
[312145316,1705668656056,-500.0,0.00022969,2]
[312145317,1705668656067,-500.0,0.00022969,2]
[312145318,1705668656077,-500.0,0.00022969,2]
[312145319,1705668656087,-500.0,0.00022969,2]
[312145320,1705668656098,-500.0,0.00022969,2]
[312145321,1705668656108,-506.96653246,0.00022969,2]
[312145322,1705668656119,-500.0,0.00022969,2]
[312145323,1705668656130,-504.35891311,0.00022969,2]
[312145324,1705668656140,-500.0,0.00022969,2]
[312145325,1705668656150,-500.0,0.00022969,2]
[312145326,1705668656162,-500.0,0.00022969,2]
[312145327,1705668656172,-902.93,0.00022969,2]
[312145328,1705668656183,-500.0,0.00022969,2]
[312145329,1705668656193,-500.0,0.00022969,2]
[312145330,1705668656203,-500.0,0.00022969,2]
[312145331,1705668656214,-846.79,0.00022969,2]
[312145332,1705668656224,-675.16,0.00022969,2]
[312145333,1705668656234,-1394.66,0.00022969,2]
[312145334,1705668656245,-248.3169502,0.00022969,2]
[312145335,1705668656255,-772.11,0.00022969,2]
[312145336,1705668656266,-1173.48,0.00022969,2]
[312145337,1705668656277,-500.0,0.00022969,2]
[312145338,1705668656287,-885.88,0.00022969,2]
[312145339,1705668656297,-500.0,0.00022969,2]
[312145340,1705668656307,-507.09942762,0.00022969,2]
[312145341,1705668656318,-1313.15,0.00022969,2]
[312145342,1705668656328,-500.0,0.00022969,2]
[312145343,1705668656338,-821.38,0.00022969,2]
[312145344,1705668656350,-500.0,0.00022969,2]
[312145345,1705668656360,-500.0,0.00022969,2]
[312145346,1705668656371,-500.0,0.00022969,2]
[312145347,1705668656381,-667.86,0.00022969,2]
[312145348,1705668656392,-500.0,0.00022969,2]
[312145349,1705668656402,-771.89,0.00022969,2]
[312145350,1705668656412,-529.76,0.00022969,2]
[312145351,1705668656423,-1461.72,0.00022969,2]
[312145352,1705668656434,-1218.79,0.00022969,2]
[312145353,1705668656444,-1653.11,0.00022969,2]
[312145354,1705668656454,-184.58040411,0.00022969,2]
[312145355,1705668657044,-500.0,0.00021917,2]
[312145356,1705668657056,-320.68600656,0.00022191,2]
[312145357,1705668657078,-179.31399344,0.00022191,2]
[312145358,1705668657089,-635.69959589,0.00022969,2]
[312145359,1705668657101,-130.99708656,0.00022969,2]
[312145360,1705668657163,-369.00291344,0.00022969,2]
[312145361,1705668657174,-500.0,0.00022969,2]
[312145362,1705668657185,-500.0,0.00022969,2]
[312145363,1705668657196,-313.76757682,0.00022969,2]
[312145364,1705668657239,-187.48689767,0.00022969,2]
[312145365,1705668657250,-654.56281321,0.00022969,2]
[312145366,1705668657263,-21.83718679,0.00022969,2]
[312145367,1705668657274,-259.20309098,0.00022969,2]
[312145368,1705668657313,-528.31690902,0.00022969,2]
[312145369,1705668657325,-500.0,0.00022969,2]
[312145370,1705668657336,-500.0,0.00022969,2]
[312145371,1705668657347,-1013.6,0.00022969,2]
[312145372,1705668657357,-474.96772142,0.00022969,2]
[312145373,1705668657424,-25.03227858,0.00022969,2]
[312145374,1705668657436,-728.34,0.00022969,2]
[312145375,1705668657447,-500.0,0.00022969,2]
[312145376,1705668657458,-186.50719767,0.00022969,2]
[312145377,1705668657470,-500.0,0.00022969,2]
[312145378,1705668657481,-500.0,0.00022969,2]
[312145379,1705668657492,-500.0,0.00022969,2]
[312145380,1705668657503,-500.0,0.00022969,2]
[312145381,1705668657514,-500.0,0.00022969,2]
[312145382,1705668657525,-500.0,0.00022969,2]
[312145383,1705668657535,-2667.52,0.00022969,2]
[312145384,1705668657547,-500.0,0.00022969,2]
[312145385,1705668657558,-500.0,0.00022969,2]
[312145386,1705668657569,-634.46,0.00022969,2]
[312145387,1705668657580,-500.0,0.00022969,2]
[312145388,1705668657590,-500.0,0.00022969,2]
[312145389,1705668657601,-500.0,0.00022969,2]
[312145390,1705668657613,-254.56946608,0.00022969,2]
[312145391,1705668657627,-1824.20053392,0.00022969,2]
[312145392,1705668657638,-781.01,0.00022969,2]
[312145393,1705668657649,-634.08,0.00022969,2]
[312145394,1705668657660,-500.0,0.00022969,2]
[312145395,1705668657670,-500.0,0.00022969,2]
[312145396,1705668657682,-500.0,0.00022969,2]
[312145397,1705668657693,-500.0,0.00022969,2]
[312145398,1705668657705,-500.0,0.00022969,2]
[312145399,1705668657716,-500.0,0.00022969,2]
[312145400,1705668657727,-500.0,0.00022969,2]
[312145401,1705668657738,-500.0,0.00022969,2]
[312145402,1705668657750,-505.81275801,0.00022969,2]
[312145403,1705668657761,-500.0,0.00022969,2]
[312145404,1705668657771,-500.0,0.00022969,2]
[312145405,1705668657782,-913.3,0.00022969,2]
[312145406,1705668657793,-500.0,0.00022969,2]
[312145407,1705668657804,-877.93,0.00022969,2]
[312145408,1705668657815,-824.17,0.00022969,2]
[312145409,1705668657826,-231.24990796,0.00022969,2]
[312145410,1705668657837,-2725.77,0.00022969,2]
[312145411,1705668657847,-500.0,0.00022969,2]
[312145412,1705668657858,-500.0,0.00022969,2]
[312145413,1705668657870,-500.0,0.00022969,2]
[312145414,1705668657880,-500.0,0.00022969,2]
[312145415,1705668657890,-500.0,0.00022969,2]
[312145416,1705668657902,-2664.56,0.00022969,2]
[312145417,1705668657913,-160.73235602,0.00022969,2]
[312145418,1705668658213,-277.059999,0.00022465,2]
[312145419,1705668658233,-53.56041324,0.00022465,2]
[312145420,1705668658244,-339.26764398,0.00022969,2]
[312145421,1705668658255,-1765.34,0.00022969,2]
[312145422,1705668658266,-636.5,0.00022969,2]
[312145423,1705668658277,-500.0,0.00022969,2]
[312145424,1705668658288,-2687.39764278,0.00022969,2]
[312145425,1705668658587,-689.91235722,0.00022969,2]
[312145426,1705668658598,-134.90307298,0.00022969,2]
[312145427,1705668658626,-354.72076362,0.00022969,2]
[312145428,1705668658645,-803.6161634,0.00022969,2]
[312145429,1705668658656,-16.86713678,0.00022969,2]
[312145430,1705668658671,-483.13286322,0.00022969,2]
[312145431,1705668658682,-500.0,0.00022969,2]
[312145432,1705668658693,-500.97699155,0.00022969,2]
[312145433,1705668658704,-500.0,0.00022969,2]
[312145434,1705668658715,-1126.33,0.00022969,2]
[312145435,1705668658725,-500.0,0.00022969,2]
[312145436,1705668658736,-808.21,0.00022969,2]
[312145437,1705668658747,-500.0,0.00022969,2]
[312145438,1705668658758,-1083.37,0.00022969,2]
[312145439,1705668658768,-500.0,0.00022969,2]
[312145440,1705668658779,-3070.75,0.00022969,2]
[312145441,1705668658790,-500.0,0.00022969,2]
[312145442,1705668658801,-1281.4,0.00022969,2]
[312145443,1705668658812,-1293.44,0.00022969,2]
[312145444,1705668658822,-745.02,0.00022969,2]
[312145445,1705668658833,-500.0,0.00022969,2]
[312145446,1705668658844,-1000.0,0.00022969,7]
[312145447,1705668658855,-500.0,0.00022969,2]
[312145448,1705668658866,-500.0,0.00022969,2]
[312145449,1705668658876,-1559.5,0.00022969,2]
[312145450,1705668658889,-896.32,0.00022969,2]
[312145451,1705668658900,-591.94,0.00022969,2]
[312145452,1705668658911,-500.0,0.00022969,2]
[312145453,1705668658922,-645.9,0.00022969,2]
[312145454,1705668658933,-1478.5,0.00022969,2]
[312145455,1705668659311,-500.0,0.00022969,2]
[312145456,1705668659343,-1031.7,0.00022969,2]
[312145457,1705668659356,-500.0,0.00022969,2]
[312145458,1705668659367,-2307.17,0.00022969,2]
[312145459,1705668659378,-590.06,0.00022969,2]
[312145460,1705668659389,-500.0,0.00022969,2]
[312145461,1705668659400,-1905.05,0.00022969,2]
[312145462,1705668659410,-500.0,0.00022969,2]
[312145463,1705668659421,-797.83,0.00022969,2]
[312145464,1705668659432,-715.68,0.00022969,2]
[312145465,1705668659444,-500.0,0.00022969,2]
[312145466,1705668659455,-650.97,0.00022969,2]
[312145467,1705668659466,-510.5,0.00022969,2]
[312145468,1705668659477,-843.5,0.00022969,2]
[312145469,1705668659487,-1023.93,0.00022969,2]
[312145470,1705668659498,-500.0,0.00022969,2]
[312145471,1705668659511,-500.0,0.00022969,2]
[312145472,1705668659521,-528.61,0.00022969,2]
[312145473,1705668659533,-1268.54,0.00022969,2]
[312145474,1705668659544,-500.0,0.00022969,2]
[312145475,1705668659555,-2375.81,0.00022969,2]
[312145476,1705668659566,-500.0,0.00022969,2]
[312145477,1705668659577,-500.0,0.00022969,2]
[312145478,1705668659588,-770.06,0.00022969,2]
[312145479,1705668659599,-1645.89,0.00022969,2]
[312145480,1705668659609,-500.0,0.00022969,2]
[312145481,1705668659619,-1348.69,0.00022969,2]
[312145482,1705668659630,-500.0,0.00022969,2]
[312145483,1705668659641,-500.0,0.00022969,2]
[312145484,1705668659652,-2383.76,0.00022969,2]
[312145485,1705668659664,-500.0,0.00022969,2]
[312145486,1705668659674,-751.67443878,0.00022969,2]
[312145487,1705668659700,-474.36556122,0.00022969,2]
[312145488,1705668659710,-500.0,0.00022969,2]
[312145489,1705668659721,-500.0,0.00022969,2]
[312145490,1705668659732,-500.0,0.00022969,2]
[312145491,1705668659742,-531.93290452,0.00022969,2]
[312145492,1705668659759,-641.93709548,0.00022969,2]
[312145493,1705668659770,-893.14,0.00022969,2]